Cogmind - Beta 10.2 @@@ ROGUE MODE // 2021.09.28 @ 23:00:13 Player: Jezoensis Result: Self-destructed Performance ------------- Evolutions (1) 500 Regions Visited (5) 1000 Robots Destroyed (35) 175 Value Destroyed (915) 915 Prototype IDs (1) 20 Alien Tech Used (0) 0 Bonus (0) 0 TOTAL SCORE: 2610 Bonus ------- None Cogmind --------- Core Integrity 310/400 Matter 224/300 Energy 280/280 System Corruption 0% Temperature Cool (0) Movement Treading (160) Location -9/Exiles Parts ------- > --- POWER (1) -------- Heavy Ion Engine > --- PROPULSION (3) --- Light Treads Light Treads Light Treads > --- UTILITY (3) ------ Medium Storage Unit Improved Terrain Scanner Terrain Scan Processor > --- WEAPON (2) ------- EM Pulse Gun Assault Rifle > --- INVENTORY (8) ---- Heavy Ion Engine Light Treads Improved Terrain Scanner EM Pulse Gun EM Pulse Gun Grenade Launcher Mining Laser Katana Peak State ------------ > --- POWER ------------ Heavy Ion Engine > --- PROPULSION ------- Light Treads Light Treads Light Treads > --- UTILITY ---------- Medium Storage Unit Improved Terrain Scanner Terrain Scan Processor > --- WEAPON ----------- Assault Rifle Shotgun > --- INVENTORY -------- Light Treads Light Treads Improved Terrain Scanner Transmission Jammer Shotgun Grenade Launcher Mining Laser Katana [Rating: 15] Favorites ----------- Power Ion Engine Engine Ion Engine Propulsion Light Treads Treads Light Treads Utility Medium Storage Unit Device Improved Terrain Scanner Storage Medium Storage Unit Processor Terrain Scan Processor Protection Light Armor Plating Weapon EM Pulse Gun Energy Gun EM Pulse Gun Ballistic Gun Assault Rifle Launcher Grenade Launcher Special Weapon Mining Laser Build | -11 -10 -10 -9 -9 -9 ------- Run | Scr Mat Min Mat Min Exi Slots Evolved 2 | . . . 2 . . Power . | . . . . . . Propulsion 1 | . . . 1 . . Utility 1 | . . . 1 . . Weapon . | . . . . . . Parts Attached 55 | 8 19 1 23 4 . Power 3 | 1 . . 2 . . Engine 3 | 1 . . 2 . . Core . | . . . . . . Reactor . | . . . . . . Propulsion 10 | 2 1 . 5 2 . Treads 10 | 2 1 . 5 2 . Leg . | . . . . . . Wheel . | . . . . . . Hover . | . . . . . . Flight . | . . . . . . Utility 24 | 2 11 1 10 . . Device 12 | 1 5 . 6 . . Storage 2 | 1 1 . . . . Processor 1 | . . . 1 . . Hackware . | . . . . . . Protection 9 | . 5 1 3 . . Artifact . | . . . . . . Weapon 18 | 3 7 . 6 2 . Energy Gun 10 | 3 5 . 1 1 . Energy Cannon . | . . . . . . Ballistic Gun 4 | . . . 4 . . Ballistic Cannon . | . . . . . . Launcher 3 | . 2 . 1 . . Special Weapon 1 | . . . . 1 . Impact Weapon . | . . . . . . Slashing Weapon . | . . . . . . Piercing Weapon . | . . . . . . Special Melee Weapon . | . . . . . . Unidentified Prototypes 1 | . . . 1 . . Parts Lost 4 | . 1 . 3 . . Power . | . . . . . . Propulsion . | . . . . . . Utility 1 | . . . 1 . . Weapon 3 | . 1 . 2 . . Highest Loss Streak 2 | . 1 . 2 . . Average Slot Usage (%) 99 | . 99 100 99 100 100 Engine 12 | . 14 14 11 11 11 Treads 29 | . 28 28 33 33 33 Device 8 | . 6 11 8 11 11 Storage 12 | . 14 14 11 11 11 Processor 4 | . . . 11 11 11 Protection 4 | . 7 2 2 . . Energy Gun 20 | . 26 28 9 10 11 Ballistic Gun 4 | . . . 11 11 11 Naked Turns . | . . . . . . Heaviest Build 25 | 14 21 20 25 21 21 Greatest Support 60 | 40 40 40 60 60 60 Greatest Overweight (x) . | . . . . . . Average Overweight (x) . | . . . . . . Largest Inventory Capacity 8 | 6 8 8 8 8 8 Average Capacity 7 | 5 7 8 8 8 8 Most Carried 8 | 4 8 7 8 8 8 Average Carried 6 | 1 6 7 7 8 8 Final Capacity 8 | 6 8 8 8 8 8 Final Carried 8 | 4 7 7 8 8 8 Class Distribution -------------------- 100% | Mutant Dominant Class ---------------- Mutant | -10/Materials Mutant | -10/Mines Mutant | -9/Materials Mutant | -9/Mines Mutant | -9/Exiles Resources | -11 -10 -10 -9 -9 -9 ----------- Run | Scr Mat Min Mat Min Exi Matter Collected 846 | 280 205 10 249 102 . Remotely . | . . . . . . Salvage Created 1263 | 167 518 60 416 102 . Parts 77 | 14 26 2 29 6 . Haulers Intercepted 2 | . 1 . 1 . . Recyclers Shooed 1 | . . . 1 . . Parts Field Recycled . | . . . . . . Retrieved Matter . | . . . . . . Parts Self-Destructed . | . . . . . . Prevented . | . . . . . . Kills | -11 -10 -10 -9 -9 -9 ------- Run | Scr Mat Min Mat Min Exi Combat Hostiles Destroyed 23 | . 11 1 9 2 . Guns 17 | . 6 1 8 2 . AOE 5 | . 4 . 1 . . Classes Destroyed 10 | 2 4 . 3 1 . Tunneler 4 | 4 . . . . . Hauler 2 | . 1 . 1 . . Recycler 2 | 1 1 . . . . Operator 1 | . . . 1 . . Watcher 3 | . 2 . 1 . . Swarmer 3 | . 3 . . . . Grunt 15 | . 8 1 5 1 . Brawler 1 | . . . . 1 . Duelist 1 | . . . 1 . . Sentry 3 | . . . 3 . . Best Kill Streak 7 | 3 7 1 5 1 . Combat Bots Only 4 | . 4 1 3 1 . Max Kills in Single Turn 3 | 1 3 1 1 1 . Gunslinging . | . . . . . . Exploded 2 | . 2 . 1 . . Melee . | . . . . . . Uniques/NPCs Destroyed . | . . . . . . Combat | -11 -10 -10 -9 -9 -9 -------- Run | Scr Mat Min Mat Min Exi Damage Taken 1048 | . 299 59 637 53 . Core 127 | . 37 . 69 21 . Absorbed by Shields . | . . . . . . Core Remaining (%) 92 | 100 . 85 . . . Volleys Fired 78 | 10 25 3 29 11 . Largest 2 | 2 2 2 2 2 . Hottest 100 | 90 90 80 80 100 . Shots Fired 152 | 20 47 6 58 21 . Gun 144 | 20 44 6 54 20 . Cannon . | . . . . . . Launcher 7 | . 3 . 4 . . Special 1 | . . . . 1 . Kinetic 35 | . . . 25 10 . Thermal 21 | 10 10 . . 1 . Explosive 7 | . 3 . 4 . . Electromagnetic 89 | 10 34 6 29 10 . Robot Hit Streak 14 | 3 13 3 14 5 . Robot Miss Streak 4 | 2 2 1 4 2 . Penetration Max . | . . . . . . Secondary Targets . | . . . . . . Shots Hit Robots 105 | 11 33 5 44 12 . Core Hits 59 | 6 24 2 23 4 . Critical Hits . | . . . . . . Critical Kills . | . . . . . . Critical Parts Destroyed . | . . . . . . Melee Attacks . | . . . . . . Impact . | . . . . . . Slashing . | . . . . . . Piercing . | . . . . . . Sneak Attacks . | . . . . . . Combat Hostiles . | . . . . . . Follow-up Attacks . | . . . . . . Damage Inflicted 2080 | 185 868 54 818 155 . Guns 1290 | 141 399 54 541 155 . Cannons . | . . . . . . Explosions 790 | 44 469 . 277 . . Melee . | . . . . . . Ramming . | . . . . . . Kinetic 372 | . . . 308 64 . Thermal 350 | 130 220 . . . . Explosive 540 | . 263 . 277 . . Electromagnetic 818 | 55 385 54 233 91 . Impact . | . . . . . . Slashing . | . . . . . . Piercing . | . . . . . . Highest Corruption . | . . . . . . Average Corruption . | . . . . . . Corruption Purged . | . . . . . . Overload Shots . | . . . . . . Overflow Damage . | . . . . . . Projectiles . | . . . . . . Explosions . | . . . . . . Melee . | . . . . . . Knockbacks . | . . . . . . Impact . | . . . . . . Kinetic . | . . . . . . Secondary . | . . . . . . Self-Inflicted Damage 61 | . 61 . . . . Shots 2 | . 2 . . . . Rammed . | . . . . . . Targets Rammed . | . . . . . . Kicked . | . . . . . . Crushed . | . . . . . . Highest Temperature 192 | 192 142 108 174 12 . Average Temperature 58 | 85 58 59 53 4 . Received Heat Transfer 372 | . 105 33 204 30 . Siege Activations . | . . . . . . Robots Corrupted 1 | . 1 . . . . Combat Hostiles 1 | . 1 . . . . Parts Fried 2 | . 2 . . . . Impact Corruptions . | . . . . . . Robots Melted . | . . . . . . Combat Hostiles . | . . . . . . Parts Melted . | . . . . . . Heat Transferred 705 | 309 396 . . . . Parts Sabotaged . | . . . . . . Parts Stolen . | . . . . . . Parts Stripped . | . . . . . . Power Chain Reactions 2 | 1 1 . . . . Missiles Intercepted . | . . . . . . Alert | -11 -10 -10 -9 -9 -9 ------- Run | Scr Mat Min Mat Min Exi Peak Influence 323 | 25 323 137 302 111 . Initial 92 | . 16 92 53 61 . Average 149 | 11 200 98 180 77 . Maximum Alert Level 1 | . 1 . 1 . . Low Security (%) 70 | 100 50 100 58 100 . Level 1 29 | . 49 . 41 . . Level 2 . | . . . . . . Level 3 . | . . . . . . Level 4 . | . . . . . . Level 5 . | . . . . . . High Security . | . . . . . . Max Security . | . . . . . . Squads Dispatched 4 | . 2 . 2 . . Investigation 1 | . . . 1 . . Extermination . | . . . . . . Reinforcement 3 | . 2 . 1 . . Assault . | . . . . . . Garrison . | . . . . . . Intercept . | . . . . . . Construction Impeded . | . . . . . . Haulers Reinforced . | . . . . . . Stealth | -11 -10 -10 -9 -9 -9 --------- Run | Scr Mat Min Mat Min Exi Distress Signals 5 | . 2 . 3 . . Communications Jammed . | . . . . . . Distress Signals . | . . . . . . Times Spotted 36 | . 17 2 15 2 . Peak Tracking Total 6 | . 3 2 6 2 . Tactical Retreats 3 | . 1 1 1 . . Traps | -11 -10 -10 -9 -9 -9 ------- Run | Scr Mat Min Mat Min Exi Traps Triggered 2 | . 1 . 1 . . Indirectly . | . . . . . . Trap Hack Attempts . | . . . . . . Triggered . | . . . . . . Disarmed . | . . . . . . Reprogrammed . | . . . . . . Reused . | . . . . . . Traps Extracted . | . . . . . . Installed . | . . . . . . Triggered . | . . . . . . Machines | -11 -10 -10 -9 -9 -9 ---------- Run | Scr Mat Min Mat Min Exi Machines Disabled 1 | . 1 . . . . Max in Single Turn 1 | . 1 . . . . Machines Sabotaged . | . . . . . . Garrisons Compromised . | . . . . . . Overloaded Fab Kills . | . . . . . . Fab Network Shutdowns . | . . . . . . Hacking | -11 -10 -10 -9 -9 -9 --------- Run | Scr Mat Min Mat Min Exi Machines Accessed 8 | . 3 1 4 . . Terminals 7 | . 3 . 4 . . Fabricators . | . . . . . . Repair Stations . | . . . . . . Recycling Units . | . . . . . . Scanalyzers . | . . . . . . Garrison Access . | . . . . . . Total Hacks 24 | . 12 1 11 . . Successful 11 | . 4 1 6 . . Failed 13 | . 8 . 5 . . Catastrophic . | . . . . . . Database Lockouts . | . . . . . . Manual 16 | . 8 . 8 . . Terminals 23 | . 12 . 11 . . Fabricators . | . . . . . . Repair Stations . | . . . . . . Recycling Units . | . . . . . . Scanalyzers . | . . . . . . Garrison Access . | . . . . . . Terminal Hacks 6 | . 2 1 3 . . Part Schematic 1 | . . . 1 . . Open Door 1 | . . 1 . . . Branch Access Points 2 | . 1 . 1 . . Terminal Index 2 | . 1 . 1 . . Fabricator Hacks . | . . . . . . Repair Station Hacks . | . . . . . . Recycling Unit Hacks . | . . . . . . Scanalyzer . | . . . . . . Garrison Access Hacks . | . . . . . . Unauthorized Hacks 5 | . 2 . 3 . . Terminals 5 | . 2 . 3 . . Track 1 | . . . 1 . . Botnet 4 | . 2 . 2 . . Fabricators . | . . . . . . Repair Stations . | . . . . . . Recycling Units . | . . . . . . Scanalyzers . | . . . . . . Garrison Access . | . . . . . . Data Cores Recovered 1 | . . . 1 . . Used 1 | . . . 1 . . Hacking Detections 7 | . 3 . 4 . . Full Trace Events 1 | . . . 1 . . Feedback Events . | . . . . . . Feedback Blocked . | . . . . . . Robot Schematics Acquired . | . . . . . . Robots Built . | . . . . . . Matter . | . . . . . . Time . | . . . . . . Total Robot Build Rating . | . . . . . . Part Schematics Acquired 1 | . . . 1 . . Parts Built . | . . . . . . Matter . | . . . . . . Time . | . . . . . . Total Part Build Rating . | . . . . . . Parts Repaired . | . . . . . . Time . | . . . . . . Parts Recycled . | . . . . . . Recycled Matter . | . . . . . . Retrieved Matter . | . . . . . . Retrieved Components . | . . . . . . Parts Scanalyzed . | . . . . . . Part Schematics Acquired . | . . . . . . Parts Damaged . | . . . . . . Bothacking | -11 -10 -10 -9 -9 -9 ------------ Run | Scr Mat Min Mat Min Exi Used RIF Installer . | . . . . . . Robots Hacked . | . . . . . . Non-combat . | . . . . . . Combat . | . . . . . . Robot Hacks Applied . | . . . . . . Relay Couplers Released . | . . . . . . Robots Rewired . | . . . . . . Allies Hacked . | . . . . . . Hacks Repelled . | . . . . . . Allies | -11 -10 -10 -9 -9 -9 -------- Run | Scr Mat Min Mat Min Exi Total Allies . | . . . . . . Largest Group . | . . . . . . Highest-Rated Group . | . . . . . . Highest-Rated Ally . | . . . . . . Total Orders . | . . . . . . Ally Attacks . | . . . . . . Total Damage . | . . . . . . Kills . | . . . . . . Allies Corrupted . | . . . . . . Allies Melted . | . . . . . . Intel | -11 -10 -10 -9 -9 -9 ------- Run | Scr Mat Min Mat Min Exi Robot Analysis Total . | . . . . . . Derelict Logs Recovered . | . . . . . . Drone Launches . | . . . . . . Drone Recoveries . | . . . . . . Exploration | -11 -10 -10 -9 -9 -9 ------------- Run | Scr Mat Min Mat Min Exi Turns Passed 1868 | 119 723 333 421 227 45 Spaces Moved 950 | 48 379 202 176 117 28 Core 2 | 2 . . . . . Treads 948 | 46 379 202 176 117 28 Legs . | . . . . . . Wheels . | . . . . . . Hover . | . . . . . . Flight . | . . . . . . Fastest Speed 50 | 50 160 160 160 160 160 Average Speed 159 | 155 160 160 160 160 160 Slowest Speed 160 | 160 160 160 160 160 160 Overloaded Moves . | . . . . . . Propulsion Burnouts . | . . . . . . Robots Hopped . | . . . . . . Cave-ins Triggered . | . . . . . . Exploration Rate (%) 33 | 4 80 57 24 24 9 Regions Visited 5 Branch Regions 3 Pre-discovered Areas . | . . . . . . Known Exits Taken 2 | . 1 . 1 . . Unknown Exits Taken 3 | 1 . 1 . 1 . Scrap Searched 1 | . . 1 . . . Spaces Dug 1 | . . . . 1 . Terrain Destroyed 52 | 7 20 . 24 1 . Melee . | . . . . . . Projectile 1 | . . . . 1 . AOE 51 | 7 20 . 24 . . Terrain Rammed . | . . . . . . Walls Destroyed . | . . . . . . Machines Disabled . | . . . . . . Actions | -11 -10 -10 -9 -9 -9 --------- Run | Scr Mat Min Mat Min Exi Total 1137 | 69 445 205 256 134 28 Wait 15 | . 7 . 7 1 . Move 945 | 47 378 201 175 116 28 Hop . | . . . . . . Pick Up 22 | 3 8 . 11 . . Fast Attach 14 | 8 3 . 3 . . Attach 11 | . 3 . 8 . . Detach 3 | 1 1 . 1 . . Swap 30 | . 13 1 12 4 . Drop 19 | . 7 . 10 2 . Fire 78 | 10 25 3 29 11 . Melee . | . . . . . . Ram . | . . . . . . Kick . | . . . . . . Crush . | . . . . . . Escape Stasis . | . . . . . . Rewire . | . . . . . . Trap . | . . . . . . Miscellaneous . | . . . . . . Route ------- -11/Scrapyard -10/Materials (discovered 4 exits: *Mat x3 / *Min) -10/Mines -9/Materials (discovered 2 exits: *Min / *Sto) -9/Mines (discovered 2 exits: [*Mat] / [*Exi]) -9/Exiles History --------- Turn | Location | Event 16 | -11/Scrapyard | Discovered new exit (range 16) 120 | -11/Scrapyard | Entered Materials 301 | -10/Materials | Build established: Mutant 425 | -10/Materials | Identified exit to Mines 456 | -10/Materials | Discovered new exit (range 7) 639 | -10/Materials | Discovered new exit (range 7) 788 | -10/Materials | Discovered new exit (range 3) 843 | -10/Materials | Entered Mines 858 | -10/Mines | Met a Derelict bent on vengeance 974 | -10/Mines | Found the Drone Emporium 1166 | -10/Mines | Discovered new exit (range 6) 1176 | -10/Mines | Entered Materials 1176 | -9/Materials | Evolved 2 slots: Propulsion x1, Utility x1 1279 | -9/Materials | Discovered new exit (range 13) 1575 | -9/Materials | Identified exit to Mines 1575 | -9/Materials | Identified exit to Storage 1597 | -9/Materials | Entered Mines 1626 | -9/Mines | Found a hidden stash of uninstalled traps 1761 | -9/Mines | Discovered new exit (range 16) 1818 | -9/Mines | Deemed a non-threat by the Exiles lab entrance 1818 | -9/Mines | Discovered new exit (range 5) 1824 | -9/Mines | Entered Exiles 1824 | -9/Exiles | Found Exiles lab abandoned 1869 | -9/Exiles | Self-destructed Last Messages --------------- 01586_ Triggered Explosive Trap. 01586_ An explosion rips through the floor. 01587_ W-16 Scout sends out distress signal. LOCATION=MINES GOAL=ESCAPE Something is scanning the area. 01626_ A stash of uninstalled traps is collected here! 01711_ K-01 Serf collects debris. 01721_ Destroyed Sml. Laser. 01724_ G-34 Mercenary destroyed. 01729_ Acquired 45 matter. 01761_ EXIT=FOUND 01763_ B-36 Bruiser destroyed. 01766_ Acquired 57 matter. 01769_ Dropped Lgt. Treads. 01805_ K-01 Serf cleans the Pulverizer. 01818_ "No threat detected, you may enter." 01818_ EXIT=FOUND LOCATION=UNKNOWN GOAL=ESCAPE Map ----- +----------------------------------------------------+ | ?????????????????????????????????????????????????? | | ?????????????????????????????????????????????????? | | ?????????????????????????????????????????????????? | | ?????????????????????????????????????????????????? | | ?????????????????????????????????????????????????? | | ?????????????????????????????????????????????????? | | ?????????????????????????????????????????????????? | | ?????????????????????????????????????????????????? | | ?????????????????????????????????????????????????? | | ?????????????????????????????????????????????????? | | ???????????????????????????????#?#???????????????? | | ????????????????????????????????????????? ??????? | | ?????????????????????????###?#??????????? ????? | | ?????????????????#????#?#?#??#??????????? ?#??? | | ???????????????????????????????????#???## #????# | | ??????????????????????#???#????##?????## ##???? | | ???????????????????#?????????#?#???##?# #???? | | ??????????????????##?#??##??????#??#??# #?#?? | | ?????????????????##" ???????##??#????## ????# | | ?????????????????#" ???????#????#?## #?????? | | ????????????????##" #?#?????????### #??#??# | | ??????????????### ##?????????### ##??##?? | | ??????????????# ########## #???#??# | | ?????????????## #""""## ##????#?? | | ?????????????# * ##?##?#?? | | ???????????????????## @ * ##???### | | ?????????????? ?????## ##???##? | | ????????????????????#"""""#### ###???# | | ?????????????????#??#######??#### * ###?? | | ?????????????#?#?#?##?#????????###### ##? | | ????????????????????#?#?????????????### #? | | ??????????????#????????????????##????#### ## | | ??????????????????????????#????#???##???### ## | | ?????????????#???#???#???????#???####???##" ## | | ??????????????????????#???#???????#???##?#### # | | ???????????????????????##????#?#?#???#??????# | | ????????????????????????#????##???#####???#?## | | ?????????????????#??????????????#?????????#?#### | | ?????????????????????????????#?#?#????#????????# | | ????????????????????#????????#??#?##??#????????## | | ??????????????????????????????????#????#?#?#???### | | ???????????????????????????????#?#???????????#???# | | ?????????????????????????????????????????????????? | | ?????????????????????????????????????#????#????#?? | | ????????????????????????????????????##???#?#???#?? | | ?????????????????????????????????????????????????# | | ??????????????????????????????????????#????#????#? | | ?????????????????????????????????????????????????? | | ?????????????????????????????????????????????????? | | ?????????????????????????????????????????????????? | +----------------------------------------------------+ Best States ------------- Heat Dissipation 28 Energy Generation 14 Energy Capacity 280 Matter Stores 300 Matter Capacity 300 Sight Range 16 Terrain Scan Range 16 Terrain Scan Density 85 Jamming Range 8 Armor Coverage 225 Evasion (%) 40 Recoil Reduction 3 Item Schematics ----------------- Hcp. Storage Unit | -9/Materials | Hacked Robot Schematics ------------------ None Fabricated ------------ Nothing Alien Tech Used ----------------- None Achievements -------------- None Challenges ------------ None Game ------ Seed DimensionalShadeSplitter Manual? 0 Play Time 00:17:31 Cumulative 324.0 hours Start 2021.09.28 @ 22:42:33 End 2021.09.28 @ 23:00:13 Sessions 1 Manual Loads 0 Difficulty Rogue Special Mode None Game No. 146 Rogue 31 Adventurer 113 Explorer 2 Win Type - Total 25 Types 22/2/0/0/0/0/0/0/1 Lore% 49 Gallery% 79 Achievement% 55 Wizard Run 0 Options --------- ASCII 0 Keyboard 1 Movement Numpad Keybinds 0 Fullscreen 1 Font 36/TerminusFine Map View 76x50 Tactical HUD 1 Map Filters NONE Filters NONE Steam 1 RUN: 13921dfd-1e86-4905-b6f2-e18aee89d176